fUSD/lending_fUSD_20250221
["ID","MTS","AMOUNT","RATE_DAILY","PERIOD"]
[353978555,1740172259318,-567.21,0.00011449,2]
[353978556,1740172259327,-500.0,0.00011449,2]
[353978557,1740172259337,-694.16,0.00011449,2]
[353978558,1740172259346,-678.43,0.00011449,2]
[353978559,1740172259356,-690.55,0.00011449,2]
[353978560,1740172259365,-500.0,0.00011449,2]
[353978561,1740172259374,-500.0,0.00011449,2]
[353978562,1740172259384,-663.28,0.00011449,2]
[353978563,1740172259394,-500.0,0.00011449,2]
[353978564,1740172259405,-996.53,0.00011449,2]
[353978565,1740172259414,-731.38,0.00011449,2]
[353978566,1740172259423,-500.0,0.00011449,2]
[353978567,1740172259433,-643.91,0.00011449,2]
[353978568,1740172259442,-500.0,0.00011449,2]
[353978569,1740172259452,-500.0,0.00011449,2]
[353978570,1740172259461,-500.0,0.00011449,2]
[353978571,1740172259471,-301.91291952,0.00011449,2]
[353978572,1740172259484,-500.0,0.00011449,2]
[353978573,1740172259493,-500.0,0.00011449,2]
[353978574,1740172259502,-500.0,0.00011449,2]
[353978575,1740172259512,-731.06,0.00011449,2]
[353978576,1740172259521,-500.0,0.00011449,2]
[353978577,1740172259531,-500.0,0.00011449,2]
[353978578,1740172259664,-500.0,0.00011449,2]
[353978579,1740172259674,-710.81,0.00011449,2]
[353978580,1740172259683,-500.6,0.00011449,2]
[353978581,1740172259693,-500.0,0.00011449,2]
[353978582,1740172259703,-624.32,0.00011449,2]
[353978583,1740172259713,-500.0,0.00011449,2]
[353978584,1740172259722,-500.0,0.00011449,2]
[353978585,1740172259733,-595.44,0.00011449,2]
[353978586,1740172259742,-500.0,0.00011449,2]
[353978587,1740172259751,-751.36,0.00011449,2]
[353978588,1740172259761,-636.57,0.00011449,2]
[353978589,1740172259770,-500.0,0.00011449,2]
[353978590,1740172259780,-500.0,0.00011449,2]
[353978591,1740172259790,-500.0,0.00011449,2]
[353978592,1740172259800,-893.82,0.00011449,2]
[353978593,1740172259810,-174.831552,0.00011449,2]
[353978594,1740172259820,-500.0,0.00011449,2]
[353978595,1740172259829,-500.0,0.00011449,2]
[353978596,1740172259839,-500.0,0.00011449,2]
[353978597,1740172259849,-587.07,0.00011449,2]
[353978598,1740172259858,-500.0,0.00011449,2]
[353978599,1740172259869,-1704.14,0.00011449,2]
[353978600,1740172259879,-500.0,0.00011449,2]
[353978601,1740172259889,-870.24,0.00011449,2]
[353978602,1740172259898,-523.06,0.00011449,2]
[353978603,1740172259908,-614.08225541,0.00011449,2]
[353978604,1740172259917,-1140.49,0.00011449,2]
[353978605,1740172259926,-500.0,0.00011449,2]
[353978606,1740172259936,-1885.94,0.00011449,2]
[353978607,1740172259946,-762.29,0.00011449,2]
[353978608,1740172259956,-985.36,0.00011449,2]
[353978609,1740172259965,-1329.74,0.00011449,2]
[353978610,1740172259976,-1050.0,0.00011449,2]
[353978611,1740172259986,-841.39,0.00011449,2]
[353978612,1740172259996,-500.0,0.00011449,2]
[353978613,1740172260005,-1478.11,0.00011449,2]
[353978614,1740172260015,-1687.94,0.00011449,2]
[353978615,1740172260025,-1236.11,0.00011449,2]
[353978616,1740172260035,-500.0,0.00011449,2]
[353978617,1740172260045,-500.0,0.00011449,2]
[353978618,1740172260055,-527.93,0.00011449,2]
[353978619,1740172260065,-500.0,0.00011449,2]
[353978620,1740172260075,-1031.57,0.00011449,2]
[353978621,1740172260085,-836.59,0.00011449,2]
[353978622,1740172260094,-1035.44,0.00011449,2]
[353978623,1740172260104,-500.0,0.00011449,2]
[353978624,1740172260114,-1245.12,0.00011449,2]
[353978625,1740172260123,-1117.96,0.00011449,2]
[353978626,1740172260133,-500.0,0.00011449,2]
[353978627,1740172260143,-1068.45,0.00011449,2]
[353978628,1740172260153,-1183.89,0.00011449,2]
[353978629,1740172260163,-500.0,0.00011449,2]
[353978630,1740172260172,-401.44997995,0.00011449,2]
[353978631,1740172260182,-1056.87,0.00011449,2]
[353978632,1740172260191,-5637.87,0.00011449,2]
[353978633,1740172260201,-797.09,0.00011449,2]
[353978634,1740172260210,-559.58,0.00011449,2]
[353978635,1740172260220,-1352.53,0.00011449,2]
[353978636,1740172260231,-739.7,0.00011449,2]
[353978637,1740172260241,-500.0,0.00011449,2]
[353978638,1740172260250,-1479.65,0.00011449,2]
[353978639,1740172260260,-500.0,0.00011449,2]
[353978640,1740172260270,-896.66,0.00011449,2]
[353978641,1740172260279,-2215.1,0.00011449,2]
[353978642,1740172260289,-1219.06,0.00011449,2]
[353978643,1740172260299,-500.0,0.00011449,2]
[353978644,1740172260308,-1253.82,0.00011449,2]
[353978645,1740172260317,-1134.86,0.00011449,2]
[353978646,1740172260327,-1523.22,0.00011449,2]
[353978647,1740172260336,-500.0,0.00011449,2]
[353978648,1740172260346,-500.0,0.00011449,2]
[353978649,1740172260355,-500.0,0.00011449,2]
[353978650,1740172260365,-1190.42,0.00011449,2]
[353978651,1740172260374,-500.0,0.00011449,2]
[353978652,1740172260384,-942.8,0.00011449,2]
[353978653,1740172260394,-500.0,0.00011449,2]
[353978654,1740172260406,-500.0,0.00011449,2]
[353978655,1740172260416,-579.37,0.00011449,2]
[353978656,1740172260426,-1258.98,0.00011449,2]
[353978657,1740172260443,-1291.85,0.00011449,2]
[353978658,1740172260464,-500.0,0.00011449,2]
[353978659,1740172260474,-661.23,0.00011449,2]
[353978660,1740172260487,-1149.69,0.00011449,2]
[353978661,1740172260497,-500.0,0.00011449,2]
[353978662,1740172260506,-2660.4,0.00011449,2]
[353978663,1740172260516,-1991.69,0.00011449,2]
[353978664,1740172260526,-500.0,0.00011449,2]
[353978665,1740172260536,-614.9,0.00011449,2]
[353978666,1740172260546,-1151.83,0.00011449,2]
[353978667,1740172260556,-500.0,0.00011449,2]
[353978668,1740172260566,-811.74,0.00011449,2]
[353978669,1740172260576,-1450.82,0.00011449,2]
[353978670,1740172260586,-1170.09,0.00011449,2]
[353978671,1740172260596,-500.0,0.00011449,2]
[353978672,1740172260606,-500.0,0.00011449,2]
[353978673,1740172260615,-500.0,0.00011449,2]
[353978674,1740172260625,-500.0,0.00011449,2]
[353978675,1740172260635,-897.28,0.00011449,2]
[353978676,1740172260644,-1737.05,0.00011449,2]
[353978677,1740172260654,-500.0,0.00011449,2]
[353978678,1740172260663,-853.87,0.00011449,2]
[353978679,1740172260673,-500.0,0.00011449,2]
[353978680,1740172260682,-638.91,0.00011449,2]
[353978681,1740172260691,-511.08,0.00011449,2]
[353978682,1740172260701,-500.0,0.00011449,2]
[353978683,1740172260711,-500.0,0.00011449,2]
[353978684,1740172260720,-1229.62,0.00011449,2]
[353978685,1740172260733,-580.46,0.00011449,2]
[353978686,1740172260742,-500.0,0.00011449,2]
[353978687,1740172260752,-1513.79,0.00011449,2]
[353978688,1740172260762,-794.55,0.00011449,2]
[353978689,1740172260772,-1136.08,0.00011449,2]
[353978690,1740172260782,-1175.93,0.00011449,2]
[353978691,1740172260791,-500.0,0.00011449,2]
[353978692,1740172260801,-500.0,0.00011449,2]
[353978693,1740172260811,-987.72,0.00011449,2]
[353978694,1740172260821,-731.97,0.00011449,2]
[353978695,1740172260831,-500.0,0.00011449,2]
[353978696,1740172260841,-1199.69,0.00011449,2]
[353978697,1740172260851,-1172.47,0.00011449,2]
[353978698,1740172260863,-2284.05,0.00011449,2]
[353978699,1740172260873,-500.0,0.00011449,2]
[353978700,1740172260883,-5314.28,0.00011449,2]
[353978701,1740172260893,-1158.45,0.00011449,2]
[353978702,1740172260903,-588.49,0.00011449,2]
[353978703,1740172260913,-500.0,0.00011449,2]
[353978704,1740172260923,-500.0,0.00011449,2]
[353978705,1740172260932,-1637.66,0.00011449,2]
[353978706,1740172260943,-1092.4,0.00011449,2]
[353978707,1740172260953,-500.0,0.00011449,2]
[353978708,1740172260963,-1130.79,0.00011449,2]
[353978709,1740172260973,-589.95,0.00011449,2]
[353978710,1740172260985,-961.8,0.00011449,2]
[353978711,1740172260995,-500.0,0.00011449,2]
[353978712,1740172261004,-839.71,0.00011449,2]
[353978713,1740172261014,-500.0,0.00011449,2]
[353978714,1740172261024,-597.77,0.00011449,2]
[353978715,1740172261033,-863.56,0.00011449,2]
[353978716,1740172261043,-2270.11,0.00011449,2]
[353978717,1740172261053,-2553.24,0.00011449,2]
[353978718,1740172261063,-500.0,0.00011449,2]
[353978719,1740172261073,-1389.81,0.00011449,2]
[353978720,1740172261082,-500.0,0.00011449,2]
[353978721,1740172261092,-500.0,0.0001145,2]
[353978722,1740172261102,-519.67,0.0001145,2]
[353978723,1740172261111,-500.0,0.0001145,2]
[353978724,1740172261120,-500.0,0.0001145,2]
[353978725,1740172261129,-500.0,0.0001145,2]
[353978726,1740172261139,-500.0,0.0001145,2]
[353978727,1740172261149,-500.0,0.0001145,2]
[353978728,1740172261158,-500.0,0.0001145,2]
[353978729,1740172261167,-500.0,0.0001145,2]
[353978730,1740172261176,-500.0,0.0001145,2]
[353978731,1740172261186,-500.0,0.0001145,2]
[353978732,1740172261195,-500.0,0.0001145,2]
[353978733,1740172261204,-500.0,0.0001145,2]
[353978734,1740172261214,-500.0,0.0001145,2]
[353978735,1740172261223,-500.0,0.0001145,2]
[353978736,1740172261235,-500.0,0.0001145,2]
[353978737,1740172261245,-500.0,0.0001145,2]
[353978738,1740172261254,-500.0,0.0001145,2]
[353978739,1740172261263,-500.0,0.0001145,2]
[353978740,1740172261272,-500.0,0.0001145,2]
[353978741,1740172261282,-500.0,0.0001145,2]
[353978742,1740172261291,-500.0,0.00011451,2]
[353978743,1740172261300,-4217.13181045,0.00011459,2]
[353978744,1740172261310,-2777.326,0.00011493,2]
[353978745,1740172261319,-166.824,0.00011493,2]
[353978746,1740172261328,-2751.0,0.00011507,2]
[353978747,1740172261338,-500.0,0.0001153,2]
[353978748,1740172261348,-649.82,0.0001153,2]
[353978749,1740172261357,-622.03,0.0001153,2]
[353978750,1740172261367,-1075.7,0.0001153,2]
[353978751,1740172261376,-855.71,0.0001153,2]
[353978752,1740172261385,-1013.9,0.0001153,2]
[353978753,1740172261395,-1231.28,0.0001153,2]
[353978754,1740172261406,-769.3,0.0001153,2]
[353978755,1740172261415,-500.0,0.0001153,2]
[353978756,1740172261426,-916.53,0.0001153,2]
[353978757,1740172261435,-1480.7,0.0001153,2]
[353978758,1740172261446,-1452.9,0.0001153,2]
[353978759,1740172261455,-1092.95,0.0001153,2]
[353978760,1740172261465,-761.8,0.0001153,2]
[353978761,1740172261474,-931.16,0.0001153,2]
[353978762,1740172261487,-500.0,0.0001153,2]
[353978763,1740172261497,-1001.35,0.0001153,2]
[353978764,1740172261506,-2093.79,0.0001153,2]
[353978765,1740172261515,-591.75,0.0001153,2]
[353978766,1740172261524,-757.37,0.0001153,2]
[353978767,1740172261534,-500.0,0.0001153,2]
[353978768,1740172261543,-1067.6,0.0001153,2]
[353978769,1740172261552,-500.0,0.0001153,2]
[353978770,1740172261562,-500.0,0.0001153,2]
[353978771,1740172261571,-1427.11,0.0001153,2]
[353978772,1740172261581,-782.56,0.0001153,2]
[353978773,1740172261590,-969.96,0.0001153,2]
[353978774,1740172261599,-842.52,0.0001153,2]
[353978775,1740172261608,-830.72,0.0001153,2]
[353978776,1740172261618,-663.66,0.0001153,2]
[353978777,1740172261627,-150.0,0.00011531,2]
[353978778,1740172261636,-538.49,0.00011531,2]
[353978779,1740172261645,-500.0,0.00011531,2]
[353978780,1740172261654,-691.94,0.00011531,2]
[353978781,1740172261663,-500.0,0.00011531,2]
[353978782,1740172261672,-500.0,0.00011531,2]
[353978783,1740172261682,-644.17,0.00011531,2]
[353978784,1740172261691,-500.0,0.00011531,2]
[353978785,1740172261700,-500.0,0.00011531,2]
[353978786,1740172261709,-667.56,0.00011531,2]
[353978787,1740172261718,-500.0,0.00011531,2]
[353978788,1740172261728,-756.41,0.00011531,2]
[353978789,1740172261737,-500.0,0.00011531,2]
[353978790,1740172261747,-651.32,0.00011531,2]
[353978791,1740172261756,-500.0,0.00011531,2]
[353978792,1740172261765,-500.0,0.00011531,2]
[353978793,1740172261775,-500.0,0.00011531,2]
[353978794,1740172261784,-500.0,0.00011531,2]
[353978795,1740172261793,-552.92,0.00011531,2]
[353978796,1740172261803,-664.1,0.00011531,2]
[353978797,1740172261812,-500.0,0.00011531,2]
[353978798,1740172262030,-500.0,0.00011531,2]
[353978799,1740172262090,-500.0,0.00011531,2]
[353978800,1740172262100,-641.81,0.00011531,2]
[353978801,1740172262110,-500.0,0.00011531,2]
[353978802,1740172262119,-500.0,0.00011531,2]
[353978803,1740172262129,-500.0,0.00011531,2]
[353978804,1740172262138,-529.44,0.00011531,2]
[353978805,1740172262148,-500.0,0.00011531,2]
[353978806,1740172262157,-500.0,0.00011531,2]
[353978807,1740172262168,-500.0,0.00011531,2]
[353978808,1740172262177,-580.98,0.00011531,2]
[353978809,1740172262186,-500.0,0.00011531,2]
[353978810,1740172262196,-500.0,0.00011531,2]
[353978811,1740172262206,-656.48,0.00011531,2]
[353978812,1740172262215,-500.0,0.00011531,2]
[353978813,1740172262225,-645.51,0.00011531,2]
[353978814,1740172262237,-500.0,0.00011531,2]
[353978815,1740172262248,-500.0,0.00011531,2]
[353978816,1740172262257,-500.0,0.00011531,2]
[353978817,1740172262267,-875.23,0.00011531,2]
[353978818,1740172262276,-819.32,0.00011531,2]
[353978819,1740172262286,-514.61,0.00011531,2]
[353978820,1740172262295,-681.73,0.00011531,2]
[353978821,1740172262305,-500.0,0.00011531,2]
[353978822,1740172262315,-500.0,0.00011531,2]
[353978823,1740172262325,-773.23,0.00011531,2]
[353978824,1740172262334,-500.0,0.00011531,2]
[353978825,1740172262343,-500.0,0.00011531,2]
[353978826,1740172262353,-500.0,0.00011531,2]
[353978827,1740172262363,-500.0,0.00011531,2]
[353978828,1740172262373,-500.0,0.00011531,2]
[353978829,1740172262382,-193.607216,0.00011531,2]
[353978830,1740172262391,-760.5,0.00011531,2]
[353978831,1740172262407,-500.0,0.00011531,2]
[353978832,1740172262416,-500.0,0.00011531,2]
[353978833,1740172262425,-565.11,0.00011531,2]
[353978834,1740172262434,-281.23673,0.00011531,2]
[353978835,1740172262445,-500.0,0.00011531,2]
[353978836,1740172262455,-500.0,0.00011531,2]
[353978837,1740172262464,-703.17,0.00011531,2]
[353978838,1740172262474,-500.0,0.00011531,2]
[353978839,1740172262490,-709.63,0.00011531,2]
[353978840,1740172262500,-562.69,0.00011531,2]
[353978841,1740172262510,-696.24,0.00011531,2]
[353978842,1740172262519,-567.21,0.00011531,2]
[353978843,1740172262529,-500.0,0.00011531,2]
[353978844,1740172262538,-694.16,0.00011531,2]
[353978845,1740172262547,-678.43,0.00011531,2]
[353978846,1740172262556,-690.55,0.00011531,2]
[353978847,1740172262566,-500.0,0.00011531,2]
[353978848,1740172262575,-500.0,0.00011531,2]
[353978849,1740172262584,-663.28,0.00011531,2]
[353978850,1740172262594,-500.0,0.00011531,2]
[353978851,1740172262603,-996.53,0.00011531,2]
[353978852,1740172262612,-731.38,0.00011531,2]
[353978853,1740172262622,-500.0,0.00011531,2]
[353978854,1740172262631,-643.91,0.00011531,2]
[353978855,1740172262640,-500.0,0.00011531,2]
[353978856,1740172262650,-156.366219,0.00011531,2]
[353978857,1740172262660,-327.20927388,0.00011531,2]
[353978858,1740172262669,-500.0,0.00011531,2]
[353978859,1740172262679,-500.0,0.00011531,2]
[353978860,1740172262688,-500.0,0.00011531,2]
[353978861,1740172262699,-500.0,0.00011531,2]
[353978862,1740172262708,-731.06,0.00011531,2]
[353978863,1740172262718,-500.0,0.00011531,2]
[353978864,1740172262730,-500.0,0.00011531,2]
[353978865,1740172262739,-500.0,0.00011531,2]
[353978866,1740172262749,-710.81,0.00011531,2]
[353978867,1740172262759,-500.6,0.00011531,2]
[353978868,1740172262768,-500.0,0.00011531,2]
[353978869,1740172262778,-624.32,0.00011531,2]
[353978870,1740172262788,-500.0,0.00011531,2]
[353978871,1740172262797,-500.0,0.00011531,2]
[353978872,1740172262807,-595.44,0.00011531,2]
[353978873,1740172262816,-500.0,0.00011531,2]
[353978874,1740172262826,-751.36,0.00011531,2]
[353978875,1740172262835,-636.57,0.00011531,2]
[353978876,1740172262845,-500.0,0.00011531,2]
[353978877,1740172262854,-500.0,0.00011531,2]
[353978878,1740172262865,-500.0,0.00011531,2]
[353978879,1740172262875,-893.82,0.00011531,2]
[353978880,1740172262885,-174.831552,0.00011531,2]
[353978881,1740172262894,-500.0,0.00011531,2]
[353978882,1740172262904,-500.0,0.00011531,2]
[353978883,1740172262913,-500.0,0.00011531,2]
[353978884,1740172262924,-587.07,0.00011531,2]
[353978885,1740172262934,-500.0,0.00011531,2]
[353978886,1740172262943,-1704.14,0.00011531,2]
[353978887,1740172262952,-500.0,0.00011531,2]
[353978888,1740172262962,-870.24,0.00011531,2]
[353978889,1740172262971,-523.06,0.00011531,2]
[353978890,1740172262986,-1140.49,0.00011531,2]
[353978891,1740172262996,-500.0,0.00011531,2]
[353978892,1740172263006,-1885.94,0.00011531,2]
[353978893,1740172263016,-762.29,0.00011531,2]
[353978894,1740172263026,-985.36,0.00011531,2]
[353978895,1740172263036,-1329.74,0.00011531,2]
[353978896,1740172263046,-1050.0,0.00011531,2]
[353978897,1740172263056,-841.39,0.00011531,2]
[353978898,1740172263066,-500.0,0.00011531,2]
[353978899,1740172263076,-1478.11,0.00011531,2]
[353978900,1740172263086,-1687.94,0.00011531,2]
[353978901,1740172263097,-1236.11,0.00011531,2]
[353978902,1740172263107,-500.0,0.00011531,2]
[353978903,1740172263118,-500.0,0.00011531,2]
[353978904,1740172263127,-527.93,0.00011531,2]
[353978905,1740172263136,-500.0,0.00011531,2]
[353978906,1740172263146,-1031.57,0.00011531,2]
[353978907,1740172263156,-836.59,0.00011531,2]
[353978908,1740172263165,-1035.44,0.00011531,2]
[353978909,1740172263175,-500.0,0.00011531,2]
[353978910,1740172263186,-1245.12,0.00011531,2]
[353978911,1740172263196,-1117.96,0.00011531,2]
[353978912,1740172263205,-500.0,0.00011531,2]
[353978913,1740172263215,-1068.45,0.00011531,2]
[353978914,1740172263225,-1183.89,0.00011531,2]
[353978915,1740172263238,-500.0,0.00011531,2]
[353978916,1740172263248,-1056.87,0.00011531,2]
[353978917,1740172263258,-5637.87,0.00011531,2]
[353978918,1740172263268,-559.58,0.00011531,2]
[353978919,1740172263278,-797.09,0.00011531,2]
[353978920,1740172263288,-1352.53,0.00011531,2]
[353978921,1740172263297,-739.7,0.00011531,2]
[353978922,1740172263307,-500.0,0.00011531,2]
[353978923,1740172263316,-1479.65,0.00011531,2]
[353978924,1740172263326,-500.0,0.00011531,2]
[353978925,1740172263335,-896.66,0.00011531,2]
[353978926,1740172263345,-2215.1,0.00011531,2]
[353978927,1740172263355,-1219.06,0.00011531,2]
[353978928,1740172263365,-500.0,0.00011531,2]
[353978929,1740172263375,-1253.82,0.00011531,2]
[353978930,1740172263385,-1134.86,0.00011531,2]
[353978931,1740172263395,-1523.22,0.00011531,2]
[353978932,1740172263406,-500.0,0.00011531,2]
[353978933,1740172263418,-500.0,0.00011531,2]
[353978934,1740172263428,-500.0,0.00011531,2]
[353978935,1740172263437,-500.0,0.00011531,2]
[353978936,1740172263447,-1190.42,0.00011531,2]
[353978937,1740172263457,-942.8,0.00011531,2]
[353978938,1740172263467,-500.0,0.00011531,2]
[353978939,1740172263476,-500.0,0.00011531,2]
[353978940,1740172263488,-579.37,0.00011531,2]
[353978941,1740172263498,-1258.98,0.00011531,2]
[353978942,1740172263508,-1291.85,0.00011531,2]
[353978943,1740172263518,-500.0,0.00011531,2]
[353978944,1740172263528,-1149.69,0.00011531,2]
[353978945,1740172263539,-661.23,0.00011531,2]
[353978946,1740172263548,-2660.4,0.00011531,2]
[353978947,1740172263558,-1991.69,0.00011531,2]
[353978948,1740172263568,-500.0,0.00011531,2]
[353978949,1740172263578,-614.9,0.00011531,2]
[353978950,1740172263588,-1151.83,0.00011531,2]
[353978951,1740172263598,-500.0,0.00011531,2]
[353978952,1740172263608,-811.74,0.00011531,2]
[353978953,1740172263618,-1450.82,0.00011531,2]
[353978954,1740172263627,-1170.09,0.00011531,2]
[353978955,1740172263637,-500.0,0.00011531,2]
[353978956,1740172263647,-500.0,0.00011531,2]
[353978957,1740172263656,-500.0,0.00011531,2]
[353978958,1740172263666,-500.0,0.00011531,2]
[353978959,1740172263676,-897.28,0.00011531,2]
[353978960,1740172263686,-1737.05,0.00011531,2]
[353978961,1740172263696,-500.0,0.00011531,2]
[353978962,1740172263705,-853.87,0.00011531,2]
[353978963,1740172263715,-500.0,0.00011531,2]
[353978964,1740172263725,-638.91,0.00011531,2]
[353978965,1740172263738,-511.08,0.00011531,2]
[353978966,1740172263747,-500.0,0.00011531,2]
[353978967,1740172263757,-500.0,0.00011531,2]
[353978968,1740172263767,-1229.62,0.00011531,2]
[353978969,1740172263777,-580.46,0.00011531,2]
[353978970,1740172263786,-500.0,0.00011531,2]
[353978971,1740172263796,-1513.79,0.00011531,2]
[353978972,1740172263806,-794.55,0.00011531,2]
[353978973,1740172263816,-1136.08,0.00011531,2]
[353978974,1740172263826,-1175.93,0.00011531,2]
[353978975,1740172263835,-500.0,0.00011531,2]
[353978976,1740172263845,-500.0,0.00011531,2]
[353978977,1740172263856,-987.72,0.00011531,2]
[353978978,1740172263868,-731.97,0.00011531,2]
[353978979,1740172263878,-500.0,0.00011531,2]
[353978980,1740172263888,-1199.69,0.00011531,2]
[353978981,1740172263897,-1172.47,0.00011531,2]
[353978982,1740172263908,-2284.05,0.00011531,2]
[353978983,1740172263918,-500.0,0.00011531,2]
[353978984,1740172263928,-5314.28,0.00011531,2]
[353978985,1740172263939,-1158.45,0.00011531,2]
[353978986,1740172263950,-588.49,0.00011531,2]
[353978987,1740172263961,-244.64831951,0.00011531,2]
[353978988,1740172263972,-500.0,0.00011531,2]
[353978989,1740172263983,-1637.66,0.00011531,2]
[353978990,1740172263993,-1092.4,0.00011531,2]
[353978991,1740172264003,-500.0,0.00011531,2]
[353978992,1740172264014,-1130.79,0.00011531,2]
[353978993,1740172264024,-589.95,0.00011531,2]
[353978994,1740172264034,-961.8,0.00011531,2]
[353978995,1740172264044,-500.0,0.00011531,2]
[353978996,1740172264054,-839.71,0.00011531,2]
[353978997,1740172264064,-500.0,0.00011531,2]
[353978998,1740172264075,-597.77,0.00011531,2]
[353978999,1740172264085,-863.56,0.00011531,2]
[353979000,1740172264095,-2270.11,0.00011531,2]
[353979001,1740172264104,-2553.24,0.00011531,2]
[353979002,1740172264114,-500.0,0.00011531,2]
[353979003,1740172264124,-1389.81,0.00011531,2]
[353979004,1740172264133,-500.0,0.00011531,2]
[353979005,1740172264143,-500.0,0.00011532,2]
[353979006,1740172264153,-519.67,0.00011532,2]
[353979007,1740172264163,-500.0,0.00011532,2]
[353979008,1740172264172,-500.0,0.00011532,2]
[353979009,1740172264182,-500.0,0.00011532,2]
[353979010,1740172264191,-500.0,0.00011532,2]
[353979011,1740172264201,-500.0,0.00011532,2]
[353979012,1740172264211,-500.0,0.00011532,2]
[353979013,1740172264220,-305.67883801,0.00011532,2]
[353979014,1740172264232,-500.0,0.00011532,2]
[353979015,1740172264242,-220.0894058,0.00011532,2]
[353979016,1740172264252,-500.0,0.00011532,2]
[353979017,1740172264261,-500.0,0.00011532,2]
[353979018,1740172264271,-500.0,0.00011532,2]
[353979019,1740172264281,-500.0,0.00011532,2]
[353979020,1740172264291,-500.0,0.00011532,2]
[353979021,1740172264301,-500.0,0.00011532,2]
[353979022,1740172264311,-500.0,0.00011532,2]
[353979023,1740172264321,-473.84043332,0.00011532,2]
[353979024,1740172264332,-500.0,0.00011532,2]
[353979025,1740172264341,-500.0,0.00011532,2]
[353979026,1740172264351,-500.0,0.00011533,2]
[353979027,1740172264361,-150.0,0.00011555,2]
[353979028,1740172264370,-1000.0,0.00011565,2]
[353979029,1740172264380,-150.0,0.00011583,2]
[353979030,1740172264389,-776.16,0.00011589,2]
[353979031,1740172264401,-150.0,0.00011592,2]
[353979032,1740172264411,-150.0,0.00011596,2]
[353979033,1740172264420,-7930.84512847,0.00011597,2]
[353979034,1740172264429,-1000.0,0.00011598,2]
[353979035,1740172264438,-150.0,0.00011609,2]
[353979036,1740172264449,-150.0,0.0001161,2]
[353979037,1740172264459,-150.0,0.00011611,2]
[353979038,1740172264469,-149882.69102433,0.00011613,3]
[353979039,1740172264479,-538.49,0.00011613,2]
[353979040,1740172264490,-500.0,0.00011613,2]
[353979041,1740172264550,-691.94,0.00011613,2]
[353979042,1740172264559,-500.0,0.00011613,2]
[353979043,1740172264568,-500.0,0.00011613,2]
[353979044,1740172264577,-644.17,0.00011613,2]
[353979045,1740172264586,-500.0,0.00011613,2]
[353979046,1740172264596,-500.0,0.00011613,2]
[353979047,1740172264605,-667.56,0.00011613,2]
[353979048,1740172264614,-500.0,0.00011613,2]
[353979049,1740172264623,-756.41,0.00011613,2]
[353979050,1740172264632,-500.0,0.00011613,2]
[353979051,1740172264641,-651.32,0.00011613,2]
[353979052,1740172264650,-500.0,0.00011613,2]
[353979053,1740172264659,-500.0,0.00011613,2]
[353979054,1740172264669,-500.0,0.00011613,2]